Cogmind - Beta 14 @@@ ROGUE MODE // 2024.08.17 @ 01:20:24 Player: HourglassLad Result: Destroyed by as-59806 with Assembled Blade Performance ------------- Evolutions (0) 0 Regions Visited (2) 400 Robots Destroyed (0) 0 Value Destroyed (0) 0 Prototype IDs (0) 0 Alien Tech Used (0) 0 Bonus (0) 0 TOTAL SCORE: 400 Bonus ------- None Cogmind --------- Core Integrity 0/250 Matter 300/300 Energy 98/100 System Corruption 1% Temperature Cool (0) Movement Core (50) Location -10/Mines Parts ------- > --- POWER (1) -------- (None) > --- PROPULSION (2) --- (None) > --- UTILITY (2) ------ (None) > --- WEAPON (2) ------- (None) > --- INVENTORY (5) ---- Light Ion Engine Wheel Compact Wheel Medium Storage Unit EM Pulse Gun Peak State ------------ > --- POWER ------------ Light Ion Engine > --- PROPULSION ------- Aluminum Leg Aluminum Leg > --- UTILITY ---------- Small Storage Unit Terrain Scanner > --- WEAPON ----------- EM Pulse Gun Assault Rifle > --- INVENTORY -------- Light Ion Engine Wheel Compact Wheel EM Pulse Gun Grenade Launcher [Rating: 7] Favorites ----------- Power Light Ion Engine Engine Light Ion Engine Propulsion Aluminum Leg Leg Aluminum Leg Utility Terrain Scanner Device Terrain Scanner Storage Medium Storage Unit Weapon Assault Rifle Energy Gun EM Pulse Gun Ballistic Gun Assault Rifle Build | -11 -10 -10 ------- Run | Yrd Mat Min Slots Evolved . | . . . Power . | . . . Propulsion . | . . . Utility . | . . . Weapon . | . . . Parts Attached 8 | 6 2 . Power 1 | 1 . . Engine 1 | 1 . . Core . | . . . Reactor . | . . . Propulsion 2 | 2 . . Treads . | . . . Leg 2 | 2 . . Wheel . | . . . Hover . | . . . Flight . | . . . Utility 3 | 1 2 . Device 1 | . 1 . Storage 2 | 1 1 . Processor . | . . . Hackware . | . . . Protection . | . . . Artifact . | . . . Weapon 2 | 2 . . Energy Gun 1 | 1 . . Energy Cannon . | . . . Ballistic Gun 1 | 1 . . Ballistic Cannon . | . . . Launcher . | . . . Special Weapon . | . . . Impact Weapon . | . . . Slashing Weapon . | . . . Piercing Weapon . | . . . Special Melee Weapon . | . . . Unidentified Prototypes . | . . . Parts Lost 2 | . . 2 Power 1 | . . 1 Propulsion . | . . . Utility . | . . . Weapon 1 | . . 1 Highest Loss Streak 2 | . . 2 To Critical Strikes . | . . . Average Slot Usage (%) 51 | . 99 6 Engine 7 | . 14 . Leg 14 | . 28 1 Device 7 | . 13 . Storage 7 | . 14 . Energy Gun 7 | . 14 . Ballistic Gun 7 | . 14 . Peak Build Rating 7 | 6 7 7 Average Rating 3 | 3 6 . On Entrance 4 | . 6 7 Naked Turns 264 | . . 264 Heaviest Build 18 | 12 18 18 Greatest Support 20 | 20 20 20 Greatest Overweight (x) . | . . . Average Overweight (x) . | . . . Largest Inventory Capacity 10 | 8 10 10 Average Capacity 7 | 6 9 5 Most Carried 8 | 5 8 8 Average Carried 5 | 3 6 5 Final Capacity 10 | 8 10 5 Final Carried 8 | 4 8 5 Class Distribution -------------------- 100% | Mutant Dominant Class ---------------- Mutant | -10/Materials Mutant | -10/Mines Resources | -11 -10 -10 ----------- Run | Yrd Mat Min Matter Collected 276 | 216 . 60 Remotely . | . . . Salvage Created . | . . . Parts . | . . . Haulers Intercepted . | . . . Recyclers Shooed . | . . . Parts Field Recycled . | . . . Retrieved Matter . | . . . Parts Self-Destructed . | . . . Prevented . | . . . Kills | -11 -10 -10 ------- Run | Yrd Mat Min Combat Hostiles Destroyed . | . . . Classes Destroyed . | . . . Best Kill Streak . | . . . Combat Bots Only . | . . . Max Kills in Single Turn . | . . . Gunslinging . | . . . Exploded . | . . . Melee . | . . . Uniques/NPCs Destroyed . | . . . Combat | -11 -10 -10 -------- Run | Yrd Mat Min Hostile Shots Fired 31 | . 4 27 Missed 10 | . 2 8 Damage Taken 654 | . 16 638 Core 264 | . . 264 Absorbed by Shields . | . . . Core Remaining (%) 100 | 100 . . Volleys Fired 1 | . 1 . Largest 2 | . 2 . Hottest 60 | . 60 . Shots Fired 2 | . 2 . Gun 2 | . 2 . Cannon . | . . . Launcher . | . . . Special . | . . . Kinetic 1 | . 1 . Thermal . | . . . Explosive . | . . . Electromagnetic 1 | . 1 . Robot Hit Streak . | . . . Robot Miss Streak . | . . . Penetration Max . | . . . Secondary Targets . | . . . Shots Hit Robots . | . . . Core Hits . | . . . Critical Kills . | . . . Critical Parts Destroyed . | . . . Critical Strikes . | . . . Melee Attacks . | . . . Impact . | . . . Slashing . | . . . Piercing . | . . . Sneak Attacks . | . . . Combat Hostiles . | . . . Follow-up Attacks . | . . . Damage Inflicted 12 | . 12 . Guns . | . . . Cannons . | . . . Explosions . | . . . Melee . | . . . Ramming 12 | . 12 . Kinetic . | . . . Thermal . | . . . Explosive . | . . . Electromagnetic . | . . . Impact . | . . . Slashing . | . . . Piercing . | . . . Highest Corruption 1 | . 1 1 Average Corruption 1 | . 1 1 Corruption Purged . | . . . Corruption Blocked . | . . . Effects 4 | . 1 3 Message Errors 1 | . . 1 Matter Fused 1 | . . 1 Energy Discharges 1 | . 1 . Data Loss (minor) 1 | . . 1 Overload Shots . | . . . Overflow Damage . | . . . Projectiles . | . . . Explosions . | . . . Melee . | . . . Knockbacks . | . . . Impact . | . . . Kinetic . | . . . Secondary . | . . . Self-Inflicted Damage . | . . . Shots . | . . . Rammed . | . . . Targets Rammed 1 | . 1 . Kicked 1 | . 1 . Crushed . | . . . Highest Temperature 35 | . . 35 Average Temperature 23 | . . 23 Received Heat Transfer 160 | . . 160 Siege Activations . | . . . Robots Corrupted . | . . . Combat Hostiles . | . . . Parts Fried . | . . . Impact Corruptions . | . . . Robots Melted . | . . . Combat Hostiles . | . . . Parts Melted . | . . . Heat Transferred . | . . . Parts Sabotaged . | . . . Parts Stolen . | . . . Parts Stripped . | . . . Power Chain Reactions . | . . . Alert | -11 -10 -10 ------- Run | Yrd Mat Min Peak Influence 45 | . 35 45 Initial 13 | . . 13 Average 12 | . . 25 Maximum Alert Level . | . . . Low Security (%) 100 | 100 100 100 Level 1 . | . . . Level 2 . | . . . Level 3 . | . . . Level 4 . | . . . Level 5 . | . . . High Security . | . . . Max Security . | . . . Squads Dispatched 2 | . 2 . Investigation 1 | . 1 . Extermination . | . . . Reinforcement 1 | . 1 . Assault . | . . . Garrison . | . . . Intercept . | . . . Searches Triggered . | . . . Construction Impeded . | . . . Haulers Reinforced . | . . . Active Scanning Responses . | . . . Cargo Convoy Interrupts . | . . . Stealth | -11 -10 -10 --------- Run | Yrd Mat Min Distress Signals 1 | . 1 . Communications Jammed . | . . . Distress Signals . | . . . Times Spotted 16 | . 4 12 Peak Tracking Total 9 | . 5 9 Tactical Retreats 3 | . 1 2 Traps | -11 -10 -10 ------- Run | Yrd Mat Min Traps Triggered . | . . . Indirectly . | . . . Trap Hack Attempts . | . . . Triggered . | . . . Disarmed . | . . . Reprogrammed . | . . . Reused . | . . . Traps Extracted . | . . . Installed 2 | . . 2 Triggered . | . . . Machines | -11 -10 -10 ---------- Run | Yrd Mat Min Machines Disabled . | . . . Max in Single Turn . | . . . Machines Repaired . | . . . Machines Dismantled . | . . . Machines Sabotaged . | . . . Overloaded Fab Kills . | . . . Hacking | -11 -10 -10 --------- Run | Yrd Mat Min Machines Accessed 1 | . 1 . Terminals 1 | . 1 . Fabricators . | . . . Repair Stations . | . . . Recycling Units . | . . . Scanalyzers . | . . . Garrison Access . | . . . Total Hacks 4 | . 4 . Successful 2 | . 2 . Failed 2 | . 2 . Catastrophic . | . . . Database Lockouts . | . . . Manual . | . . . Terminals 4 | . 4 . Fabricators . | . . . Repair Stations . | . . . Recycling Units . | . . . Scanalyzers . | . . . Garrison Access . | . . . Terminal Hacks 2 | . 2 . Emergency Access Points 1 | . 1 . Zone Layout 1 | . 1 . Fabricator Hacks . | . . . Repair Station Hacks . | . . . Recycling Unit Hacks . | . . . Scanalyzer . | . . . Garrison Access Hacks . | . . . Unauthorized Hacks . | . . . Terminals . | . . . Fabricators . | . . . Repair Stations . | . . . Recycling Units . | . . . Scanalyzers . | . . . Garrison Access . | . . . Data Cores Recovered . | . . . Used . | . . . Hacking Detections 1 | . 1 . Full Trace Events 1 | . 1 . Feedback Events 1 | . 1 . Corruption 1 | . 1 . Feedback Blocked . | . . . Robot Schematics Acquired . | . . . Robots Built . | . . . Authchips . | . . . Time . | . . . Total Robot Build Rating . | . . . Part Schematics Acquired . | . . . Parts Built . | . . . Authchips . | . . . Time . | . . . Total Part Build Rating . | . . . Parts Repaired . | . . . Time . | . . . Parts Recycled . | . . . Recycled Matter . | . . . Retrieved Matter . | . . . Retrieved Components . | . . . Parts Scanalyzed . | . . . Part Schematics Acquired . | . . . Parts Damaged . | . . . Bothacking | -11 -10 -10 ------------ Run | Yrd Mat Min Used RIF Installer . | . . . Robots Hacked . | . . . Non-combat . | . . . Combat . | . . . Robot Hacks Applied . | . . . Relay Couplers Released . | . . . Fabnet Peak Effective % . | . . . Robots Rewired . | . . . Allies Hacked . | . . . Hacks Repelled . | . . . Allies | -11 -10 -10 -------- Run | Yrd Mat Min Total Allies . | . . . Largest Group . | . . . Highest-Rated Group . | . . . Highest-Rated Ally . | . . . Total Orders . | . . . Ally Attacks . | . . . Total Damage . | . . . Kills . | . . . Allies Corrupted . | . . . Allies Melted . | . . . Intel | -11 -10 -10 ------- Run | Yrd Mat Min Robot Analysis Total . | . . . Derelict Logs Recovered . | . . . Drone Launches . | . . . Drone Recoveries . | . . . Exploration | -11 -10 -10 ------------- Run | Yrd Mat Min Turns Passed 610 | 50 271 289 Spaces Moved 389 | 36 176 177 Core 168 | 11 . 157 Treads . | . . . Legs 221 | 25 176 20 Wheels . | . . . Hover . | . . . Flight . | . . . Fastest Speed 50 | 50 120 50 Average Speed 89 | 98 120 57 Slowest Speed 120 | 120 120 120 Overloaded Moves . | . . . Propulsion Burnouts . | . . . Robots Hopped . | . . . Cave-ins Triggered . | . . . Exploration Rate (%) 20 | 3 27 31 Regions Visited 2 Branch Regions 1 Pre-discovered Areas . | . . . Known Exits Taken . | . . . Unknown Exits Taken 2 | 1 1 . Scrap Searched . | . . . Spaces Dug . | . . . Terrain Destroyed . | . . . Melee . | . . . Projectile . | . . . AOE . | . . . Terrain Rammed . | . . . Walls Destroyed . | . . . Machines Disabled . | . . . Actions | -11 -10 -10 --------- Run | Yrd Mat Min Total 645 | 48 233 364 Wait 232 | 1 47 184 Move 387 | 35 175 177 Hop . | . . . Pick Up 12 | 6 6 . Fast Attach 4 | 4 . . Attach 3 | 2 1 . Detach . | . . . Swap 1 | . 1 . Drop 2 | . 1 1 Fire 1 | . 1 . Melee . | . . . Ram . | . . . Kick 1 | . 1 . Crush . | . . . Escape Stasis . | . . . Rewire . | . . . Trap 2 | . . 2 Miscellaneous . | . . . Route ------- -11/Scrapyard -10/Materials -10/Mines History --------- Turn | Location | Event 9 | -11/Scrapyard | Discovered new exit (range 16) 51 | -11/Scrapyard | Entered Materials 283 | -10/Materials | Discovered new exit (range 12) 305 | -10/Materials | Build established: Mutant 322 | -10/Materials | Entered Mines 323 | -10/Mines | Assembled infested the area 328 | -10/Mines | Assisted by a Guerilla fighting off Assembled 347 | -10/Mines | Released all parts (4) 351 | -10/Mines | Core integrity fell below 50% 590 | -10/Mines | Found a hidden stash of uninstalled traps 601 | -10/Mines | Core integrity fell below 20% 611 | -10/Mines | Destroyed by as-59806 with Assembled Blade Last Messages --------------- 00346_ EM Pulse Gun destroyed. 00346_ as-80114 destroyed. 00347_ Released Terrain Scanner. 00347_ Released Assault Rifle. 00347_ Released Aluminum Leg. 00350_ U-05 Engineer builds a Wall. 00351_ The unstable cave ceiling collapses. 00356_ NXINK|FQ0KT887GXKR5HZI R 00356_ T-07 Excavator is excavating. 00379_ System corrupted: Component data lost. 00382_ T-07 Excavator is excavating. 00499_ System corrupted: Matter fused (-5). 00558_ Acquired 7 matter. 00560_ Acquired 5 matter. 00560_ U-05 Engineer builds a Wall. 00581_ Acquired 48 matter. 00590_ A stash of uninstalled traps is collected here! 00591_ Installed Proton Bomb Trap. 00596_ Critical hit (Burn: +80). Map ----- +----------------------------------------------------+ | ?????????????????????????????????????????????????? | | ?????????????????????????????????????????????????? | | ?????????????????????????????????????????????????? | | ?????????????????????????????????????????????????? | | ?????????????????????????????????????????????????? | | ?????????????????????????????????????????????????? | | ?????????????????????????????????????????????????? | | ?????????????????????????????????????????????????? | | ?????????????????????????????????????????????????? | | ?????????????????????????????????????????????????? | | ?????????????????????????????????????????????????? | | ?????????????????????????????????????????????????? | | ?????????????????????????????????????????????????? | | ?????????????????????????????????????????????????? | | ?????????????????????????????????????????????????? | | ?????????????????????????????????????????????????? | | ?????????????????????????????????????????????????? | | ????????????????????????????????????????????? ??? | | ???????###??????????????????????????????????" =%? | | ??????## ##????????####????????????????????"" ??? | | ?????## #????????# ?????????????????? ????? | | ???### ##???????# #????????????????? ??????? | | ??## ^ ##??????# #?############### #??????? | | ??# ^ ##?????# %#?# %* #??????? | | ??# & #?????#==#?# ######### # #??????? | | ??# #????##%!#?#@#???????# #????#??????? | | ??# ##???## * ###a#???????# #???????????? | | ??## # ##???## #???????# #????#??????? | | ???###### #???## #####???????# #??? #??????? | | ????????# #???# ##???????????# #??? #??????? | | ????????# #???# ##????????????# #?? ???????? | | ????????# ##### #?????????????# ### ????????? | | ????????# ===####??????????# # ?????????? | | ????????# |%=!==#??????????# # #?????????? | | ????????##############%#??????????# # #?????????? | | ???????????????????????#???######## ##????????? | | ?????????????????????#=% ##???????? | | ????????????????????????????#### # #???????? | | ??????????????????????????????# # ########? | | ??????????????#??????????????## " | | ?????????????????????????????# | | ?????????????????????????????# ########### | | ?????????????????????????????# ##?????????? | | ?????????????????????#####???## # #??????????? | | ?????????????????????? #???# # # #??????????? | | ??????????????????????# ######## # #??????????? | | ???????????????#??????# #?### ####??????????? | | ???????????????# ###??# ## # # # ##??????????? | | ??????????????##"% #### # # # ##?????????? | | ?????????????## " #" # # #?????????? | +----------------------------------------------------+ Best States ------------- Heat Dissipation 25 Energy Generation 10 Energy Capacity 125 Matter Stores 300 Matter Capacity 300 Sight Range 16 Terrain Scan Range 14 Terrain Scan Density 10 Evasion (%) 55 Item Schematics ----------------- None Robot Schematics ------------------ None Fabricated ------------ Nothing Alien Tech Used ----------------- None Achievements -------------- None Challenges ------------ None Game ------ Seed InertialTargetStorm Manual? 0 Play Time 00:15:47 Cumulative 22.8 hours Start 2024.08.17 @ 01:01:47 End 2024.08.17 @ 01:20:24 Sessions 1 Manual Loads 0 Difficulty Rogue Special Mode None Game No. 45 Rogue 45 Adventurer 0 Explorer 0 Win Type - Total 0 Types 0/0/0/0/0/0/0/0/0 Lore% 10 Gallery% 26 Achievement% 19 Wizard Run 0 Options --------- Layout 1 ASCII 0 Keyboard 0 Movement Mouse Keybinds 0 Fullscreen 1 Font 24/Smallcaps Map View 50x35 Zoom Use 35% Tactical HUD 1 Map Filters NONE Filters NONE Steam 1 RUN: 7f76a8b6-5ee7-47e7-87d4-92520cec7485